bitfinex-derivatives/quotes_ETHF0:USTF0_20241008
["timestamp","ask_amount","ask_price","bid_price","bid_amount"]
[1728400328955,0.41142,2431.4,2431.3,0.82241]
[1728400329159,0.4114,2431.6,2431.5,0.4114]
[1728400329457,0.4114,2431.6,2431.5,0.82237]
[1728400329654,0.41142,2431.5,2431.4,0.41142]
[1728400329852,7.1578,2431.7,2431.5,0.41097]
[1728400330047,0.4114,2431.6,2431.5,0.82237]
[1728400330253,7.56919,2431.7,2431.6,0.41139]
[1728400330454,3.95,2431.7,2431.5,0.41097]
[1728400330659,0.41139,2431.6,2431.5,0.82237]
[1728400330857,0.41138,2431.7,2431.6,0.41138]
[1728400331062,0.4114,2431.6,2431.5,0.4114]
[1728400331355,0.41138,2431.7,2431.1,4.23648]
[1728400331555,1.02841,2431.8,2431.5,0.41097]
[1728400331855,0.41139,2431.6,2431.5,0.41097]
[1728400332565,0.41138,2431.7,2431.6,0.41138]
[1728400332750,0.41138,2431.7,2431.6,0.82235]
[1728400332950,0.41138,2431.7,2431.6,0.41097]
[1728400333550,0.41138,2431.7,2431.6,0.82236]
[1728400333751,0.41138,2431.7,2431.6,0.41097]
[1728400333958,0.41138,2431.7,2431.6,0.82236]
[1728400334153,0.41138,2431.7,2431.6,0.41097]
[1728400335155,7.56918,2431.7,2431.6,0.41097]
[1728400335354,7.56918,2431.7,2431.1,3.2078]
[1728400335355,1.02852,2431.6,2431.1,3.2078]
[1728400335657,1.02852,2431.6,2430.7,1.02883]
[1728400335658,4.36145,2431.3,2431.2,0.82242]
[1728400336165,4.36145,2431.3,2431.2,0.82243]
[1728400338158,4.36145,2431.3,2431.2,0.41097]
[1728400338365,4.36145,2431.3,2431.2,0.82243]
[1728400340459,3.62145,2431.3,2431.2,0.82243]
[1728400347465,3.62144,2431.3,2431.2,0.82243]
[1728400348564,3.21,2431.3,2431.2,0.82243]
[1728400349169,3.62144,2431.3,2431.2,0.82243]
[1728400350269,3.21,2431.3,2431.2,0.82243]
[1728400350667,3.21,2431.5,2431.4,0.41141]
[1728400350867,0.41133,2432.0,2431.9,0.41132]
[1728400351066,0.41132,2432.0,2431.9,0.8223]
[1728400351575,3.62132,2432.1,2432.0,0.41132]
[1728400351875,3.62132,2432.1,2432.0,0.82229]
[1728400355775,3.21,2432.3,2432.0,0.41097]
[1728400356077,3.62129,2432.3,2432.2,0.82226]
[1728400357172,5.75012841,2432.3,2432.2,0.82226]
[1728400357478,2.12883841,2432.4,2432.3,0.41127]
[1728400357676,3.07227801,2432.6,2432.3,1.52657]
[1728400357677,2.12883841,2432.6,2432.3,1.52657]
[1728400357979,5.75005841,2432.7,2432.6,0.41122]
[1728400358179,5.75005841,2432.7,2432.6,0.82219]
[1728400359573,3.62122,2432.7,2432.6,0.41097]
[1728400360179,3.62122,2432.7,2432.3,1.52686]
[1728400360180,6.28226801,2432.7,2432.3,1.52686]
[1728400360379,5.76802517,2432.4,2432.3,0.41097]
[1728400360680,6.28230801,2432.4,2432.3,0.41097]
[1728400360880,3.62126,2432.4,2432.3,0.41097]
[1728400361286,2.14690137,2432.4,2432.3,0.82224]
[1728400361475,2.14690137,2432.5,2432.4,0.41126]
[1728400361784,2.55814137,2432.5,2432.4,1.89783]
[1728400362290,2.14690137,2432.5,2432.4,1.89783]
[1728400362582,2.14690137,2432.6,2432.4,1.48657]
[1728400362784,2.55811137,2432.7,2432.6,0.41122]
[1728400363089,0.41121,2432.7,2432.6,0.82219]
[1728400363480,2.14690137,2432.8,2432.6,0.41097]
[1728400363679,2.14690137,2432.8,2432.4,5.31153]
[1728400363680,2.55810137,2432.8,2432.7,0.82217]
[1728400365789,2.14690137,2432.8,2432.7,0.82217]
[1728400366683,5.35690137,2433.2,2433.0,0.41115]
[1728400366885,2.55804137,2433.1,2433.0,0.41115]
[1728400367084,0.41114,2433.1,2433.0,0.41115]
[1728400367389,0.41114,2433.1,2433.0,0.82211]
[1728400368288,5.35690137,2433.2,2433.0,0.41097]
[1728400368480,5.76804137,2433.2,2433.1,0.82211]
[1728400370378,3.62114,2433.2,2433.1,0.82211]
[1728400370583,2.14690137,2433.3,2433.1,0.41097]
[1728400370789,2.55800137,2433.4,2433.2,0.41097]
[1728400370985,2.55800137,2433.4,2433.3,0.82207]
[1728400371382,0.4111,2433.4,2433.3,0.82207]
[1728400371583,5.35690137,2433.5,2433.3,0.82207]
[1728400371780,5.26626,2433.8,2433.4,0.41097]
[1728400371781,9.59560137,2433.8,2433.4,0.41097]
[1728400371995,8.56470137,2433.8,2433.7,0.82201]
[1728400372287,6.82882,2433.8,2433.7,0.82201]
[1728400372880,6.82882,2433.8,2433.7,0.41097]
[1728400373092,10.5266,2433.8,2433.5,1.1229]
[1728400373295,0.41112,2433.3,2433.2,0.41111]
[1728400373687,0.4111,2433.4,2433.3,0.41109]
[1728400373887,0.41107,2433.5,2433.4,0.41097]
[1728400375689,0.41107,2433.5,2432.4,0.41125]
[1728400375690,0.41123,2432.6,2432.4,0.41125]
[1728400375997,0.41123,2432.6,2432.2,1.0728]
[1728400375998,0.41127,2432.3,2432.2,1.0728]
[1728400376399,0.41131,2432.1,2432.0,1.0932]
[1728400376691,0.41131,2432.1,2432.0,0.41097]
[1728400376899,3.62131,2432.1,2432.0,0.41097]
[1728400377991,0.41131,2432.1,2432.0,0.41097]
[1728400378794,41.2113,2432.2,2432.0,0.41097]
[1728400378993,0.4113,2432.2,2432.1,0.41097]
[1728400379199,0.41128,2432.3,2432.1,0.41097]
[1728400379396,1.02813,2432.5,2432.4,0.41097]
[1728400379397,0.41124,2432.5,2432.4,0.41097]
[1728400380092,3.2078,2432.6,2432.4,0.41097]
[1728400380287,3.61902,2432.6,2432.5,0.41097]
[1728400382105,1.0281,2432.5,2431.9,1.53354]
[1728400382297,1.0281,2432.5,2432.3,0.41097]
[1728400382298,0.41126,2432.4,2432.3,0.41097]
[1728400386403,10.01657943,2432.9,2432.3,6.41097]
[1728400386404,2.13902354,2432.9,2432.3,6.41097]
[1728400386599,7.32825762,2433.3,2432.6,3.2078]
[1728400386600,4.135,2433.3,2432.6,3.2078]
[1728400386803,0.41117,2433.0,2432.8,0.41117]
[1728400387204,1.02785,2433.1,2432.8,0.41117]
[1728400387411,0.41119,2432.8,2432.7,3.58269]
[1728400387803,4.97785,2433.1,2432.7,3.1715]
[1728400388008,0.41119,2432.8,2432.7,3.58269]
[1728400388208,3.95,2433.1,2432.7,3.1715]
[1728400388400,0.41118,2432.9,2432.8,0.41117]
[1728400388803,0.41119,2432.8,2432.7,3.1715]
[1728400389008,0.41119,2432.8,2432.7,2.5368]
[1728400389217,0.41119,2432.8,2432.7,2.1256]
[1728400390513,0.41119,2432.8,2432.7,2.5368]
[1728400391807,0.41119,2432.8,2432.7,1.0748]
[1728400392009,0.41124,2432.6,2432.5,0.41123]
[1728400393117,1.02801,2432.8,2432.3,3.68303758]
[1728400393310,7.1578,2432.8,2432.1,2.0652]
[1728400393509,0.41129,2432.2,2432.1,2.0652]
[1728400394218,0.41129,2432.2,2432.1,2.47651]
[1728400394721,0.41129,2432.2,2432.1,2.0652]
[1728400396321,0.41129,2432.2,2432.1,2.47651]
[1728400397019,0.41127,2432.4,2432.3,0.41126]
[1728400397317,0.41127,2432.4,2432.3,0.41127]
[1728400397514,0.41125,2432.5,2432.4,0.41124]
[1728400398115,10.52245,2432.5,2432.0,1.02831]
[1728400398321,0.41134,2432.0,2431.9,0.41133]
[1728400401020,0.41132,2432.1,2432.0,0.41131]
[1728400406737,0.4113,2432.2,2432.1,0.41129]
[1728400406921,0.41129,2432.3,2432.2,0.41127]
[1728400408227,0.41129,2432.2,2432.1,1.013]
[1728400408427,0.41132,2432.1,2432.0,0.41131]
[1728400410329,4.2142,2432.3,2431.8,2.51956816]
[1728400410535,0.41132,2432.2,2431.8,2.51956816]
[1728400410735,0.41132,2432.1,2432.0,0.41131]
[1728400414032,0.41134,2431.9,2431.8,1.42434]
[1728400417632,2.14914131,2432.1,2431.8,5.125]
[1728400417837,2.14914131,2432.3,2432.2,0.41129]
[1728400418046,2.14914131,2432.4,2432.3,0.41127]
[1728400418340,2.14914131,2432.4,2432.1,1.02825]
[1728400418341,3.2078,2432.5,2432.4,0.41126]
[1728400419029,5.35777607,2432.5,2432.4,0.41126]
[1728400419433,3.2078,2432.5,2432.4,0.41126]
[1728400419635,2.67377943,2432.6,2432.5,0.41124]
[1728400419933,2.15065355,2432.7,2432.6,0.41122]
[1728400420245,3.08494943,2432.9,2432.6,2.1482]
[1728400420543,2.15131152,2432.8,2432.7,0.4112]
[1728400420949,2.56250152,2432.8,2432.7,0.4112]
[1728400421144,2.67377943,2432.8,2432.6,2.1482]
[1728400421437,3.6212,2432.7,2432.6,1.0888]
[1728400421839,6.31165394,2432.7,2432.6,1.0888]
[1728400422136,3.6212,2432.7,2432.6,1.0888]
[1728400422338,5.90037294,2432.7,2432.6,1.50002]
[1728400422539,0.4112,2432.7,2432.6,1.50002]
[1728400422741,6.31157294,2432.7,2432.6,1.0888]
[1728400424746,6.31157294,2432.7,2432.6,1.50002]
[1728400425836,3.10157294,2432.7,2432.6,1.50002]
[1728400426446,2.15207745,2432.7,2432.6,1.50002]
[1728400426642,2.69037294,2432.8,2432.6,1.0888]
[1728400426843,3.10157294,2432.7,2432.6,1.50001]
[1728400427043,2.69037294,2432.7,2432.6,1.50001]
[1728400427258,3.10157294,2432.7,2432.6,1.50001]
[1728400427642,0.4112,2432.7,2432.6,1.50001]
[1728400427838,2.69037294,2432.7,2432.6,1.50001]
[1728400428145,2.15174148,2432.7,2432.6,8.407]
[1728400428447,2.15174148,2432.8,2432.7,0.4112]
[1728400428649,2.15174148,2433.0,2432.8,4.1104]
[1728400428849,2.15174148,2433.1,2433.0,0.41115]
[1728400429241,0.48324148,2433.2,2433.1,0.41114]
[1728400429448,0.89436148,2433.2,2433.1,1.46774]
[1728400429644,0.41112,2433.2,2433.1,1.0566]
[1728400430246,0.41112,2433.2,2433.1,1.46774]
[1728400433951,0.41112,2433.2,2433.1,1.0566]
[1728400435647,0.41112,2433.2,2433.1,1.46774]
[1728400435848,0.41112,2433.2,2433.1,1.0566]
[1728400436753,2.69037294,2433.3,2433.1,1.0566]
[1728400437057,6.4178,2433.5,2433.4,0.41109]
[1728400437058,3.61887,2433.5,2433.4,0.41109]
[1728400437455,4.23761,2433.7,2433.4,0.41109]
[1728400437456,2.69037294,2433.7,2433.4,0.41109]
[1728400437655,0.41104,2433.7,2433.6,0.41105]
[1728400440067,5.79621294,2433.9,2433.6,0.41105]
[1728400440361,0.41101,2433.9,2433.8,0.41102]
[1728400440552,3.21,2434.0,2433.5,1.02766]
[1728400440753,3.10136294,2434.1,2434.0,0.41099]
[1728400440952,0.41099,2434.1,2433.8,1.02755]
[1728400441152,3.62101,2433.9,2433.8,0.411]
[1728400442265,3.621,2433.9,2433.8,0.411]
[1728400442461,0.41104,2433.8,2433.7,0.41102]
[1728400442665,4.23752,2433.9,2433.6,1.1058]
[1728400442963,4.23752,2433.9,2433.6,1.51684]
[1728400442964,0.41104,2433.7,2433.6,1.51684]
[1728400443960,4.23752,2433.9,2433.4,2.57193351]
[1728400443961,4.23752,2433.9,2433.4,1.063]
[1728400444162,0.41107,2433.6,2433.5,0.41106]
[1728400444567,0.41105,2433.7,2433.6,0.41104]
[1728400444858,0.41105,2433.8,2433.7,0.41103]
[1728400445267,0.41105,2433.8,2433.4,1.063]
[1728400445469,2.0755,2433.7,2433.4,1.063]
[1728400445767,0.41107,2433.6,2433.5,0.41106]
[1728400446256,0.41107,2433.6,2433.2,1.1034]
[1728400446461,0.41107,2433.6,2433.3,0.41109]
[1728400446462,0.4111,2433.4,2433.3,0.41109]
[1728400446868,1.02764,2433.6,2433.2,1.1034]
[1728400447075,0.41108,2433.5,2433.4,0.41107]
[1728400447961,0.41108,2433.5,2433.2,2.1312]
[1728400447962,1.02764,2433.6,2433.2,1.1034]
[1728400448159,3.21,2433.3,2432.5,3.2078]
[1728400448357,0.41119,2432.9,2432.8,0.41117]
[1728400448562,3.21,2433.0,2432.5,6.35907]
[1728400448766,2.1475,2433.2,2432.3,0.41126]
[1728400448767,0.41127,2432.4,2432.3,0.41126]
[1728400449563,45.03797,2432.9,2432.5,0.41123]
[1728400449861,0.41122,2432.6,2432.5,0.41123]
[1728400450462,45.03797,2432.9,2432.2,7.44602]
[1728400450861,0.41119,2432.8,2432.7,0.41119]
[1728400451269,0.41122,2432.7,2432.6,0.41122]
[1728400451468,0.41123,2432.6,2432.5,0.41123]
[1728400453065,0.41124,2432.5,2432.4,0.41125]
[1728400453268,0.41123,2432.6,2432.2,3.2078]
[1728400453470,0.41127,2432.4,2432.3,0.41126]
[1728400453866,0.41125,2432.5,2432.4,0.41124]
[1728400454365,0.41123,2432.6,2432.5,0.41122]
[1728400455385,0.41127,2432.4,2432.3,0.41126]
[1728400455776,0.41125,2432.5,2432.4,0.41124]
[1728400456378,0.41127,2432.4,2432.3,0.41126]
[1728400456788,0.41125,2432.5,2432.4,0.41124]
[1728400461880,7.3212,2432.5,2432.0,3.1774]
[1728400462081,0.41131,2432.1,2432.0,2.53451]
[1728400462287,1.02821,2432.3,2432.0,2.1232]
[1728400462490,0.4113,2432.2,2432.1,0.41129]
[1728400463580,0.41129,2432.3,2432.2,0.41128]
[1728400463895,2.69037294,2432.5,2432.4,0.41126]
[1728400464184,0.41124,2432.5,2432.4,0.41126]
[1728400467992,5.85272294,2432.7,2432.1,2.54240422]
[1728400468190,0.41128,2432.4,2432.3,0.41126]
[1728400471996,5.85272294,2432.7,2432.1,2.54241422]
[1728400472297,0.41127,2432.5,2432.1,2.54241422]
[1728400472494,0.41128,2432.4,2432.3,0.41126]
[1728400472901,0.4113,2432.2,2432.0,5.331]
[1728400473191,0.41131,2432.1,2432.0,5.74231]
[1728400473494,0.41131,2432.1,2432.0,5.74232]
[1728400473998,0.41131,2432.2,2432.1,0.41129]
[1728400474695,41.82814,2432.5,2432.0,5.331]
[1728400475002,0.41131,2432.1,2432.0,5.74232]
[1728400476700,1.02823,2432.2,2432.1,0.41128]
[1728400476701,0.4113,2432.2,2432.1,0.41128]
[1728400476901,44.01,2432.6,2432.0,5.331]
[1728400477102,0.41127,2432.4,2432.3,0.41126]
[1728400477789,0.41131,2432.2,2432.1,0.41129]
[1728400477989,0.41131,2432.2,2432.0,5.331]
[1728400478188,0.41131,2432.1,2432.0,5.74232]
[1728400478391,0.41131,2432.1,2432.0,5.331]
[1728400478994,0.41131,2432.1,2432.0,2.53452]
[1728400479188,0.41131,2432.1,2432.0,2.1232]
[1728400479790,0.41131,2432.1,2432.0,2.53452]
[1728400480403,0.41131,2432.1,2432.0,2.1232]
[1728400480594,0.41131,2432.1,2432.0,2.53452]
[1728400480788,0.41131,2432.1,2432.0,2.1232]
[1728400480995,1.49611,2432.2,2431.8,1.42575]
[1728400481190,0.41134,2431.9,2431.8,1.42575]
[1728400482400,1.02832,2432.1,2431.8,1.42575]
[1728400482401,0.41133,2432.1,2432.0,0.41131]
[1728400483701,0.41134,2432.0,2431.9,0.41132]
[1728400483994,0.41134,2432.0,2431.8,1.0144]
[1728400483995,2.11303,2432.2,2431.8,1.0144]
[1728400484205,1.0282,2432.3,2431.8,1.0144]
[1728400484394,0.4113,2432.2,2432.1,0.41129]
[1728400485297,1.0282,2432.3,2431.8,1.0144]
[1728400485499,1.0282,2432.3,2431.9,0.41132]
[1728400485500,0.41134,2432.0,2431.9,0.41132]
[1728400486295,5.89817294,2432.4,2431.8,1.0144]
[1728400486495,43.99325762,2432.7,2432.3,0.41127]
[1728400486496,1.02807,2432.6,2432.3,0.41127]
[1728400486698,0.41124,2432.5,2432.4,2.50855]
[1728400486897,0.41124,2432.5,2432.4,2.0973]
[1728400487202,0.41124,2432.5,2432.4,2.50856]
[1728400487398,0.41124,2432.6,2432.5,0.41123]
[1728400487794,0.41123,2432.6,2432.5,0.41123]
[1728400489097,13.3212,2432.6,2431.5,3.2078]
[1728400489299,3.21,2432.0,2431.9,0.41133]
[1728400489701,2.68465043,2432.3,2431.9,10.5298]
[1728400489900,2.68465043,2432.3,2432.2,0.41129]
[1728400489901,0.41127,2432.3,2432.2,0.41129]
[1728400490194,3.71272043,2432.6,2431.9,6.4178]
[1728400490393,0.41124,2432.5,2432.3,0.41126]
[1728400490597,0.41124,2432.5,2432.0,1.02832]
[1728400490802,2.68465043,2432.6,2432.1,0.41131]
[1728400490997,2.68465043,2432.6,2432.4,0.41125]
[1728400490998,0.41125,2432.5,2432.4,0.41125]
[1728400491609,3.09589043,2432.6,2432.3,0.41127]
[1728400491905,3.09589043,2432.6,2432.5,0.41124]
[1728400492301,1.02803,2432.7,2432.2,3.1031]
[1728400492501,3.10206628,2432.5,2432.4,0.41124]
[1728400493210,0.41124,2432.5,2432.4,0.41124]
[1728400494504,3.63281052,2432.6,2432.5,0.41124]
[1728400498007,3.22158052,2432.8,2432.4,4.23814]
[1728400498213,3.22158052,2432.8,2432.7,0.41121]
[1728400498402,3.63277052,2432.8,2432.7,0.41121]
[1728400499104,3.63277052,2432.8,2432.7,1.49971]
[1728400499405,0.41119,2432.8,2432.7,1.49971]
[1728400499905,0.41119,2432.8,2432.2,3.61908]
[1728400499906,0.41127,2432.3,2432.2,3.61908]
[1728400500098,0.41126,2432.4,2432.3,0.41126]
[1728400500506,3.23346686,2432.5,2432.2,3.61908]
[1728400500507,0.41127,2432.3,2432.2,3.61908]
[1728400500700,3.23346686,2432.4,2431.9,3.1631]
[1728400500900,2.69466068,2432.1,2431.9,2.1391]
[1728400501104,3.10598068,2432.0,2431.9,2.55044]
[1728400501301,0.41132,2432.0,2431.9,2.55044]
[1728400501707,3.21,2432.1,2431.6,1.0535]
[1728400501906,3.1063599,2431.7,2431.6,2.1342]
[1728400502108,0.41137,2431.7,2431.6,1.0645]
[1728400502512,3.64483686,2431.8,2431.6,1.47588]
[1728400502714,0.41137,2431.7,2431.6,1.47588]
[1728400502916,0.41137,2431.7,2431.2,3.62353567]
[1728400503121,2.69450387,2431.5,2431.4,0.41142]
[1728400503307,3.23346686,2431.8,2431.3,1.0645]
[1728400503507,2.69371593,2431.5,2431.4,0.41142]
[1728400503715,2.69371593,2431.6,2431.5,0.41141]
[1728400504107,2.69371593,2431.7,2431.3,7.4823]
[1728400504317,2.69371593,2431.7,2431.6,3.62139]
[1728400504523,2.69371593,2431.9,2431.6,4.23848]
[1728400504721,2.69371593,2432.0,2431.9,0.41134]
[1728400505215,3.10503593,2432.0,2431.9,0.41134]
[1728400505515,2.69371593,2432.0,2431.9,0.41134]
[1728400505720,2.69371593,2432.1,2431.8,1.0371]
[1728400506017,2.69371593,2432.2,2432.1,0.41131]
[1728400507120,2.69371593,2432.2,2432.1,7.73251]
[1728400507422,3.10497593,2432.4,2432.3,0.41127]
[1728400507713,0.41128,2432.3,2432.2,0.41128]
[1728400507910,0.41128,2432.3,2431.9,4.71093441]
[1728400508111,2.69260673,2432.2,2432.1,0.41131]
[1728400508313,2.69260673,2432.3,2432.2,0.41129]
[1728400508618,0.41127,2432.3,2432.2,0.41129]
[1728400509218,0.41129,2432.2,2432.1,0.4113]
[1728400509513,0.41132,2432.0,2431.8,1.0371]
[1728400509714,2.69262313,2432.0,2431.8,1.0371]
[1728400509919,3.10395313,2432.0,2431.9,0.41134]
[1728400510516,2.69262313,2432.0,2431.9,0.41134]
[1728400510913,2.69262313,2432.1,2432.0,0.41132]
[1728400512217,3.23346686,2433.1,2432.1,4.112]
[1728400512427,4.27576686,2433.2,2433.1,0.41114]
[1728400512616,1.0423,2433.2,2433.0,3.2078]
[1728400512920,0.41115,2433.0,2432.9,1.022]
[1728400513226,0.41118,2432.9,2432.5,0.47848752]
[1728400513420,0.41117,2433.0,2432.5,1.0588]
[1728400513631,0.41115,2433.1,2432.9,0.41117]
[1728400513824,0.41116,2433.0,2432.8,0.41118]
[1728400514125,0.41115,2433.1,2432.9,0.41117]
[1728400514420,0.41116,2433.0,2432.8,0.41118]
[1728400514626,2.07012,2433.2,2432.5,1.0588]
[1728400514923,1.48868,2432.9,2432.7,0.41119]
[1728400515123,1.0775,2432.9,2432.8,0.41119]
[1728400515331,1.48868,2432.9,2432.7,0.41119]
[1728400515623,1.0775,2432.9,2432.5,1.0588]
[1728400515823,0.41121,2432.7,2432.6,0.41122]
[1728400516025,1.02798,2432.8,2432.1,1.0588]
[1728400516222,2.2295,2432.6,2432.2,0.41128]
[1728400516517,0.41127,2432.3,2432.2,0.41128]
[1728400517029,1.024,2432.4,2431.8,5.28577]
[1728400517224,0.41128,2432.3,2432.2,0.41128]
[1728400517822,0.41131,2432.1,2432.0,0.41132]
[1728400518120,0.41129,2432.3,2431.7,2.15113]
[1728400518321,0.41129,2432.2,2432.1,0.4113]
[1728400518717,1.024,2432.4,2432.3,0.41127]
[1728400518718,1.43526,2432.4,2432.3,0.41127]
[1728400519723,1.024,2432.4,2432.3,0.41127]
[1728400520026,1.43526,2432.4,2432.3,0.41127]
[1728400520721,1.024,2432.4,2432.3,0.41127]
[1728400521025,1.02819,2432.3,2431.7,2.15113]
[1728400521228,0.4113,2432.2,2432.1,0.4113]
[1728400522021,1.02819,2432.3,2431.7,2.15113]
[1728400522329,0.41132,2432.0,2431.9,0.41133]
[1728400522829,1.51902,2432.1,2432.0,0.41132]
[1728400523127,0.41133,2432.0,2431.9,0.41133]
[1728400524422,0.41133,2432.0,2431.7,1.1227]
[1728400524423,0.41136,2431.8,2431.7,1.1227]
[1728400524628,1.1077,2432.1,2431.5,5.30952]
[1728400524829,1.1077,2432.1,2431.9,0.41133]
[1728400524830,0.41133,2432.0,2431.9,0.41133]
[1728400525031,0.41135,2431.9,2431.8,0.41135]
[1728400525228,2.13598,2432.1,2431.7,1.026]
[1728400525618,0.41136,2431.9,2431.8,0.41135]
[1728400525817,0.41136,2431.9,2431.7,1.026]
[1728400526030,0.41136,2431.8,2431.7,1.43737]
[1728400526222,0.41135,2431.9,2431.8,0.41135]
[1728400526423,1.53885,2431.9,2431.8,0.41135]
[1728400526730,1.53884,2431.9,2431.8,0.41135]
[1728400526925,0.41138,2431.7,2431.6,0.41138]
[1728400528926,2.15587,2431.9,2431.3,1.0871]
[1728400529125,0.4114,2431.6,2431.5,0.4114]
[1728400529528,0.41142,2431.5,2431.4,0.41141]
[1728400530220,1.5187,2431.6,2431.5,0.41141]
[1728400532629,0.41138,2431.7,2431.4,3.21]
[1728400532932,0.41138,2431.7,2431.6,0.41139]
[1728400533134,4.8587088,2431.9,2431.8,0.41136]
[1728400533330,1.0422,2431.9,2431.8,0.41136]
[1728400534130,2.6890088,2432.1,2432.0,0.41132]
[1728400534433,4.135,2432.2,2432.1,0.41131]
[1728400535039,2.6890088,2432.4,2432.1,3.2078]
[1728400535238,2.6890088,2432.5,2432.4,0.41126]
[1728400535729,5.8968088,2432.6,2432.2,7.55452]
[1728400535935,5.8968088,2432.6,2432.2,6.5263]
[1728400536132,0.41126,2432.4,2432.3,0.41127]
[1728400536536,6.9248788,2432.6,2432.2,2.1877]
[1728400536733,0.41125,2432.5,2432.4,0.41125]
[1728400537034,3.1002388,2432.6,2432.5,0.41124]
[1728400537632,0.41125,2432.5,2432.4,0.41125]
[1728400538131,2.6890088,2432.6,2432.2,2.1877]
[1728400538333,3.1002388,2432.6,2432.5,0.41124]
[1728400538528,2.6890088,2432.6,2432.5,0.41124]
[1728400538929,3.1002288,2432.6,2432.5,0.41124]
[1728400539134,2.6890088,2432.6,2432.2,2.1877]
[1728400539336,0.41125,2432.5,2432.4,0.41125]
[1728400540933,0.41127,2432.4,2432.3,0.41126]
[1728400541140,2.6890088,2432.6,2432.2,1.074]
[1728400541344,2.6890088,2432.6,2432.5,0.41124]
[1728400541345,3.1002488,2432.6,2432.5,0.41124]
[1728400541836,2.6890088,2432.6,2432.5,0.41124]
[1728400542036,2.1958,2432.8,2432.4,1.02813]
[1728400542037,5.2960088,2432.8,2432.4,1.02813]
[1728400542239,0.41122,2432.7,2432.6,0.41121]
[1728400543240,3.1002288,2432.7,2432.6,0.41121]
[1728400543744,10.0094088,2432.7,2432.2,1.074]
[1728400543940,0.41129,2432.2,2432.1,3.2078]
[1728400544151,2.6890088,2432.4,2432.3,0.41127]
[1728400544349,3.1002588,2432.5,2432.4,0.41126]
[1728400544541,0.41125,2432.5,2432.4,0.41126]
[1728400544738,4.52245,2432.5,2432.4,0.41126]
[1728400545244,4.52245,2432.5,2432.2,2.1373]
[1728400545445,3.09967928,2432.4,2432.3,0.41126]
[1728400548738,0.41127,2432.3,2432.2,1.49728]
[1728400550346,3.09967928,2432.3,2432.2,1.086]
[1728400550650,4.15417928,2432.3,2432.2,1.086]
[1728400550845,4.15417928,2432.3,2432.2,1.49729]
[1728400551152,4.15417928,2432.3,2432.2,1.086]
[1728400551454,17.06324455,2432.3,2431.5,1.02849]
[1728400551646,2.68987316,2432.1,2431.5,2.1928]
[1728400551844,0.41133,2432.0,2431.9,0.41132]
[1728400552153,2.68987316,2432.1,2431.7,3.21]
[1728400552342,1.0545,2432.3,2432.1,0.41131]
[1728400552343,2.68987316,2432.2,2432.1,0.41131]
[1728400552546,0.41129,2432.2,2432.1,0.41131]
[1728400552746,4.15566316,2432.3,2432.2,0.41129]
[1728400553350,4.15566316,2432.3,2432.0,2.1536]
[1728400553650,0.41131,2432.2,2432.1,0.4113]
[1728400554852,0.41134,2432.0,2431.9,0.41132]
[1728400557143,0.41136,2431.9,2431.8,0.41135]
[1728400557551,1.46916,2431.9,2431.8,0.41135]
[1728400558549,0.41137,2431.8,2431.7,0.41136]
[1728400559247,1.46916,2431.9,2431.8,0.41136]
[1728400560050,1.0578,2431.9,2431.5,3.21]
[1728400560250,0.4114,2431.6,2431.5,0.41139]
[1728400560460,3.10121948,2431.7,2431.6,0.41139]
[1728400561564,2.68984948,2431.8,2431.7,0.41137]
[1728400561747,3.10120948,2431.8,2431.7,0.41137]
[1728400563058,2.68984948,2431.8,2431.7,0.41137]
[1728400563260,3.10118948,2431.9,2431.8,0.41136]
[1728400563561,0.41137,2431.8,2431.7,0.41136]
[1728400563872,4.27136686,2432.0,2431.3,2.59970348]
[1728400564063,4.27136686,2432.0,2430.9,3.2078]
[1728400564064,3.72076377,2431.5,2430.9,3.2078]
[1728400564248,3.72076377,2431.5,2431.3,0.41142]
[1728400564249,1.44934,2431.4,2431.3,0.41142]
[1728400564565,1.44932,2431.4,2431.3,0.41142]
[1728400565457,0.41147,2431.2,2431.1,0.41146]
[1728400565662,2.06647,2431.4,2431.0,1.02874]
[1728400565663,3.73013377,2431.4,2431.0,1.02874]
[1728400565868,4.14157377,2431.4,2431.3,0.41144]
[1728400566065,1.44934,2431.4,2431.3,0.41144]
[1728400566354,1.0379,2431.4,2430.9,7.93034361]
[1728400566555,1.44934,2431.4,2431.3,0.41144]
[1728400567559,0.41145,2431.3,2431.2,0.41144]
[1728400567865,1.0379,2431.4,2431.3,0.41144]
[1728400567866,1.44933,2431.4,2431.3,0.41144]
[1728400568161,1.0379,2431.4,2431.3,0.41144]
[1728400568457,2.69223377,2431.6,2431.5,0.41141]
[1728400568660,0.41134,2431.9,2431.8,0.41136]
[1728400568866,5.24337377,2432.0,2431.9,0.41134]
[1728400569257,0.41135,2431.9,2431.8,0.41134]
[1728400569761,3.10356377,2432.0,2431.9,0.41134]
[1728400570068,8.55108686,2432.3,2431.7,1.0814]
[1728400570069,0.41131,2432.1,2432.0,0.41132]
[1728400570258,3.10354377,2432.1,2432.0,0.41132]
[1728400570459,2.69223377,2432.2,2431.7,2.10984]
[1728400570659,2.69223377,2432.2,2431.7,2.5858891]
[1728400570865,0.41132,2432.1,2432.0,0.41132]
[1728400571167,2.69223377,2432.2,2431.7,1.0814]
[1728400571353,2.69223377,2432.1,2431.7,1.0814]
[1728400571555,0.41136,2431.8,2431.7,1.49277]
[1728400572071,0.41134,2432.0,2431.9,0.41134]
[1728400573066,3.10354377,2432.1,2432.0,0.41132]
[1728400573266,2.69223377,2432.1,2432.0,0.41132]
[1728400573567,4.23613377,2432.2,2432.1,0.41131]
[1728400574167,2.69223377,2432.3,2432.1,7.319]